bitfinex/quotes_ETHUSD_20260119
["timestamp","ask_amount","ask_price","bid_price","bid_amount"]
[1768842083909,0.9071664,3221.4,3220.9,0.90106068]
[1768842084832,0.9071664,3221.4,3220.9,0.00080096]
[1768842085225,0.9071664,3221.4,3220.9,0.90106068]
[1768842085427,0.513,3221.5,3220.9,0.90106068]
[1768842085648,0.513,3221.5,3221.0,0.90025972]
[1768842087529,1.4201664,3221.5,3221.0,0.90025972]
[1768842089830,1.4201664,3221.5,3221.2,0.001]
[1768842092423,0.513,3221.5,3221.2,0.001]
[1768842093104,0.513,3221.5,3221.2,0.90125972]
[1768842095216,0.002,3221.5,3221.2,0.90125972]
[1768842099846,0.002,3221.5,3221.2,0.001]
[1768842100041,0.9091664,3221.5,3221.2,0.001]
[1768842102127,0.002,3221.5,3221.2,0.001]
[1768842103345,0.002,3221.5,3221.2,0.93707088]
[1768842107417,0.95214145,3221.5,3221.2,0.001]
[1768842119878,4.05628633,3221.5,3221.2,0.001]
[1768842120181,0.97214572,3221.4,3221.2,0.001]
[1768842121843,0.97214572,3221.3,3221.2,0.001]
[1768842122456,0.97214572,3221.4,3221.2,0.001]
[1768842122658,1.48314572,3221.4,3221.2,0.001]
[1768842122857,0.97214572,3221.3,3220.9,0.00080096]
[1768842123580,0.97214572,3221.3,3220.9,0.94244745]
[1768842124360,0.97214572,3221.3,3220.6,0.00080088]
[1768842124361,0.97214572,3221.2,3220.6,0.00080088]
[1768842125450,0.97214572,3221.2,3220.3,0.00180136]
[1768842125451,0.97214572,3220.9,3220.3,0.00180136]
[1768842125644,0.97214572,3220.8,3220.3,0.00180136]
[1768842126180,0.97214572,3220.6,3220.3,0.00180136]
[1768842126351,0.97214572,3220.5,3220.3,0.00180136]
[1768842128254,4.07726065,3220.5,3220.3,0.00180136]
[1768842128550,0.97214572,3220.5,3220.3,0.00180136]
[1768842133186,3.10512036,3220.5,3220.3,0.00180136]
[1768842133388,0.97214572,3220.4,3220.3,0.00180136]
[1768842133594,1.45169171,3220.4,3220.3,0.00180136]
[1768842134510,0.97214572,3220.3,3220.0,0.00180176]
[1768842140214,4.07745004,3220.3,3220.0,0.00180176]
[1768842141210,0.97214572,3220.3,3220.0,0.00180176]
[1768842141413,4.07746115,3220.3,3220.0,0.00180176]
[1768842141619,0.97214572,3220.2,3219.5,3.1060369]
[1768842141816,0.97214572,3220.0,3219.4,0.94164649]
[1768842142835,0.97214572,3220.0,3219.3,0.00080176]
[1768842143035,0.96582706,3219.8,3219.3,0.00080176]
[1768842145024,0.96582706,3219.7,3219.3,0.00080176]
[1768842145727,0.511,3220.0,3219.3,0.92976921]
[1768842146313,0.96582706,3219.9,3219.3,0.92976921]
[1768842147038,5.78843819,3219.4,3219.0,0.0008016]
[1768842147237,0.0008016,3219.4,3218.9,0.92996745]
[1768842147436,0.96662866,3219.4,3218.9,0.92996745]
[1768842149341,4.07281136,3219.4,3218.9,0.92996745]
[1768842149541,4.07281136,3219.4,3218.7,0.00080144]
[1768842149542,0.96582706,3219.3,3218.7,0.00080144]
[1768842149738,0.96582706,3219.3,3218.4,0.00080232]
[1768842149739,0.96582706,3218.9,3218.4,0.00080232]
[1768842149908,0.96582706,3218.7,3218.4,0.00080232]
[1768842150839,0.96582706,3218.7,3217.8,0.92896745]
[1768842151031,0.96582706,3218.5,3217.8,0.92896745]
[1768842151233,3.1069409,3218.6,3217.8,0.92896745]
[1768842151234,0.96582706,3218.3,3217.8,0.92896745]
[1768842151815,0.96582706,3218.3,3217.8,4.03666958]
[1768842152011,1.47682706,3218.4,3217.9,0.92977041]
[1768842152342,1.47682706,3218.4,3218.0,0.92896745]
[1768842152544,3.10761065,3218.8,3218.0,0.92896745]
[1768842152545,0.00080232,3218.8,3218.0,0.92896745]
[1768842152735,0.511,3218.6,3218.0,0.92896745]
[1768842153345,0.511,3218.6,3218.1,0.92896745]
[1768842153642,0.511,3218.6,3218.2,0.92896745]
[1768842154846,0.511,3218.7,3218.2,0.92896745]
[1768842155341,0.511,3218.7,3218.3,0.92896745]
[1768842155545,0.00080232,3218.8,3218.3,0.92896745]
[1768842155714,0.00080232,3218.8,3218.4,0.92896745]
[1768842156934,0.00080144,3219.1,3218.4,5.78924059]
[1768842157117,0.51180144,3219.1,3218.5,0.92896745]
[1768842157445,0.51180144,3219.1,3218.6,0.92896745]
[1768842157641,0.00080144,3219.1,3218.6,0.92896745]
[1768842157844,0.9666285,3219.1,3218.7,0.71429714]
[1768842158030,0.9666285,3219.1,3218.6,0.92896745]
[1768842158233,0.00080144,3219.1,3218.6,0.92896745]
[1768842158433,0.00280176,3219.7,3219.1,0.92896745]
[1768842158617,0.00280176,3219.7,3219.2,0.92896745]
[1768842159750,0.00280176,3219.7,3219.3,0.92896745]
[1768842159946,0.00280176,3219.7,3219.4,0.92896745]
[1768842161134,0.94900751,3219.7,3219.3,0.40353214]
[1768842161338,0.00280176,3219.7,3219.3,4.46154936]
[1768842161527,0.00280176,3219.7,3219.4,0.95179581]
[1768842162259,0.002,3220.0,3219.5,0.95179581]
[1768842162443,0.002,3220.0,3219.6,0.95179581]
[1768842163460,0.002,3220.0,3219.7,0.95179581]
[1768842164744,0.94620575,3219.9,3219.4,0.95179581]
[1768842165155,0.94820575,3220.0,3219.4,0.40587752]
[1768842165468,0.511,3219.9,3219.5,0.95179581]
[1768842165634,0.002,3220.0,3219.5,0.95179581]
[1768842165840,0.002,3220.0,3219.6,0.95179581]
[1768842166035,0.002,3220.0,3219.4,1.35767333]
[1768842166235,0.002,3220.0,3219.5,0.95179581]
[1768842166466,0.002,3220.0,3219.7,0.8]
[1768842166874,3.10759529,3220.0,3219.7,0.8]
[1768842167241,0.002,3220.0,3219.7,0.8]
[1768842167643,0.002,3220.0,3219.6,0.95179581]
[1768842169174,0.002,3220.0,3219.7,0.95179581]
[1768842170985,0.002,3220.0,3219.4,0.95179581]
[1768842171165,0.94820575,3220.0,3219.4,1.93652191]
[1768842171371,0.94820575,3220.0,3219.6,0.8]
[1768842171566,0.002,3220.0,3219.6,0.95179581]
[1768842171951,0.94820575,3220.0,3219.4,1.93652191]
[1768842172162,0.94820575,3220.0,3219.5,0.95179581]
[1768842173190,0.94820575,3220.0,3219.5,4.05785615]
[1768842173484,0.002,3220.0,3219.6,0.9087915]
[1768842174262,0.002,3219.7,3219.6,0.9087915]
[1768842174488,0.002,3220.0,3219.6,0.9087915]
[1768842177599,0.002,3220.0,3219.7,0.9087915]
[1768842180218,0.002,3220.0,3219.7,4.01464474]
[1768842180416,0.00080176,3220.4,3219.9,0.9087915]
[1768842181360,0.00080176,3220.4,3219.7,3.77120086]
[1768842181361,0.93503107,3220.3,3219.7,0.00080192]
[1768842181492,0.00080192,3220.1,3218.8,0.9107915]
[1768842181697,0.93503107,3219.9,3218.8,0.9107915]
[1768842182053,0.93503107,3219.9,3219.3,0.00080184]
[1768842182228,0.93503107,3219.7,3219.3,0.00080184]
[1768842182435,0.93503107,3219.5,3219.3,0.00080184]
[1768842182739,0.93503107,3219.3,3218.8,3.1086594]
[1768842182897,0.93503107,3219.3,3218.8,4.0174509]
[1768842184011,0.93503107,3219.3,3218.9,4.01542453]
[1768842184216,0.511,3219.4,3218.9,4.01542453]
[1768842184596,0.93503107,3219.3,3218.8,0.9107915]
[1768842184803,0.93503107,3219.3,3218.8,4.01751977]
[1768842185118,0.511,3219.4,3218.9,4.01543071]
[1768842185604,0.511,3219.4,3218.9,3.10663921]
[1768842185813,0.511,3219.4,3219.0,0.90959318]
[1768842186026,0.511,3219.4,3219.3,0.001]
[1768842188809,1.44603107,3219.4,3219.3,0.001]
[1768842190746,1.90123587,3219.4,3219.3,0.001]
[1768842191039,1.44603107,3219.4,3219.3,0.001]
[1768842192514,0.93503107,3219.3,3219.0,0.00080168]
[1768842192720,0.93503107,3219.1,3219.0,0.00080168]
[1768842192939,0.93503107,3219.1,3218.8,0.002]
[1768842194047,0.93503107,3218.9,3218.8,0.002]
[1768842194250,0.93503107,3218.9,3218.7,0.00080152]
[1768842194818,4.04171389,3218.9,3218.7,0.00080152]
[1768842195143,1.39030246,3218.8,3218.7,0.00080152]
[1768842199126,0.45527139,3218.8,3218.7,0.00080152]
[1768842199453,4.55261223,3219.0,3218.7,0.00080152]
[1768842199654,0.002,3221.5,3218.7,0.90959302]
[1768842199655,0.93503107,3219.1,3218.7,0.90959302]
[1768842199950,0.511,3219.1,3218.7,0.90959302]
[1768842201060,4.55255654,3219.1,3218.7,0.00080152]
[1768842201249,0.93503107,3219.0,3218.7,0.00080152]
[1768842202124,0.45525176,3219.0,3218.7,0.00080152]
[1768842202326,0.93503107,3219.3,3218.8,0.9087915]
[1768842202553,0.93503107,3219.3,3218.7,0.00080152]
[1768842202859,0.93503107,3219.3,3218.7,0.90959302]
[1768842203560,0.97193549,3219.3,3218.7,0.90959302]
[1768842204880,0.97193549,3219.3,3218.7,0.00080152]
[1768842205186,0.97193549,3219.1,3218.7,0.00080152]
[1768842205388,0.76961619,3219.2,3218.7,0.92052232]
[1768842205562,0.97193549,3219.3,3218.7,0.00080152]
[1768842205750,6.72414595,3219.4,3218.7,0.92052232]
[1768842205751,0.00080168,3219.4,3218.7,0.92052232]
[1768842206086,0.51180168,3219.4,3218.7,0.92052232]
[1768842207278,0.51180168,3219.4,3218.7,0.91098969]
[1768842207449,0.00080152,3219.1,3218.8,0.9197208]
[1768842207649,0.51180168,3219.4,3218.8,0.9197208]
[1768842207880,1.48373717,3219.4,3218.8,0.9197208]
[1768842208383,0.00080168,3219.4,3218.9,0.9197208]
[1768842208871,0.97273717,3219.4,3218.9,0.9197208]
[1768842209770,0.97193549,3219.3,3218.7,4.02730263]
[1768842210699,0.001,3219.1,3218.7,4.02736483]
[1768842210922,0.001,3219.1,3218.8,0.9197208]
[1768842211069,0.00080168,3219.4,3219.0,0.9197208]
[1768842211265,0.00080168,3219.4,3218.8,3.10667588]
[1768842211266,3.10706185,3219.4,3218.7,0.0008016]
[1768842211470,0.97193549,3219.2,3218.7,0.9205224]
[1768842212284,0.97273717,3219.4,3218.7,0.9205224]
[1768842212903,0.97193549,3219.3,3218.7,0.9205224]
[1768842213107,0.97193549,3219.3,3218.7,0.0008016]
[1768842213108,0.97193549,3219.2,3218.7,0.0008016]
[1768842213493,0.97193549,3219.0,3218.7,0.0008016]
[1768842214231,1.48293549,3219.0,3218.7,0.0008016]
[1768842214719,0.97193549,3218.7,3218.4,0.0008024]
[1768842214886,0.97193549,3218.7,3217.9,0.92052376]
[1768842214887,0.97193549,3218.5,3217.9,0.92052376]
[1768842215717,0.97193549,3218.4,3217.9,0.92052376]
[1768842215885,0.97193549,3218.4,3217.9,0.00080296]
[1768842217935,0.97193549,3218.3,3217.9,0.00080296]
[1768842218131,0.97193549,3218.3,3217.3,3.10814329]
[1768842218433,0.00080288,3217.9,3217.4,0.9197208]
[1768842218653,0.00080288,3217.9,3217.5,0.9197208]
[1768842222245,0.00080288,3217.9,3217.6,0.9923358]
[1768842222553,0.00080288,3217.9,3217.8,0.002]
[1768842225638,0.98007115,3218.2,3217.8,0.002]
[1768842226156,1.46584856,3218.2,3217.8,0.002]
[1768842226654,1.46584856,3218.2,3217.8,0.9943358]
[1768842227459,0.98007115,3218.2,3217.8,0.9943358]
[1768842229355,4.08740167,3218.2,3217.8,0.9943358]
[1768842229557,4.08740167,3218.2,3217.8,0.002]
[1768842229734,0.98007115,3218.2,3217.8,0.002]
[1768842230056,0.98007115,3218.2,3217.8,0.9943358]
[1768842230371,0.98087411,3218.3,3217.8,0.9943358]
[1768842231574,0.98087411,3218.3,3217.8,0.002]
[1768842231875,0.98087411,3218.3,3217.8,0.9943358]
[1768842232229,0.00080296,3218.3,3217.9,0.9923358]
[1768842233458,0.99996081,3218.3,3217.8,0.002]
[1768842233659,0.99915785,3218.2,3217.8,0.002]
[1768842234939,1.72137206,3218.3,3217.8,0.90893868]
[1768842235168,0.001,3218.0,3217.8,0.90893868]
[1768842235768,0.001,3218.0,3217.8,0.002]
[1768842237267,0.001,3218.0,3217.9,0.90693868]
[1768842237469,0.00080296,3218.3,3217.9,0.90693868]
[1768842238965,0.99996081,3218.3,3217.8,0.002]
[1768842239167,0.99996081,3218.3,3217.8,0.90893868]
[1768842240257,0.00080296,3218.3,3217.9,0.90693868]
[1768842240558,1.51115785,3218.7,3217.9,0.90774172]
[1768842240755,3.10761727,3218.8,3218.0,0.90693868]
[1768842240968,3.10761727,3218.8,3217.9,0.51280304]
[1768842240969,0.99915785,3218.7,3217.9,0.51280304]
[1768842241148,0.99915785,3218.6,3217.9,0.00080304]
[1768842241343,6.21407486,3218.5,3217.9,0.00080304]
[1768842241589,0.99915785,3218.4,3217.9,0.00080304]
[1768842242608,0.99915785,3218.3,3217.9,0.00080304]
[1768842243603,4.10648492,3218.2,3217.9,0.00080304]
[1768842245001,0.99915785,3218.2,3217.9,0.00080304]
[1768842245990,0.512,3218.4,3217.9,0.90774172]
[1768842246397,1.51115785,3218.4,3217.9,0.90774172]
[1768842246891,0.512,3218.5,3218.0,0.90693868]
[1768842247097,0.0008024,3218.8,3218.4,0.90693868]
[1768842247286,0.5128016,3219.1,3218.5,0.90693868]
[1768842247495,3.61927074,3219.1,3218.5,0.90693868]
[1768842247679,4.61842859,3219.1,3218.5,0.90693868]
[1768842247880,3.61927074,3219.1,3218.5,0.90693868]
[1768842248081,0.99915785,3219.0,3218.5,0.90693868]
[1768842248302,3.61927074,3219.1,3218.5,0.90693868]
[1768842248513,3.61928769,3219.1,3218.5,0.90693868]
[1768842248800,4.61844554,3219.1,3218.5,0.90693868]
[1768842249100,0.99915785,3219.0,3218.5,0.90693868]
[1768842249600,0.0008016,3219.1,3218.6,0.90693868]
[1768842250222,0.0008016,3219.1,3218.7,0.90693868]
[1768842252319,0.0008016,3219.1,3218.8,0.90693868]
[1768842252531,0.51280168,3219.4,3218.8,0.90693868]
[1768842254019,0.51280168,3219.4,3218.9,0.90693868]
[1768842254880,0.00080168,3219.4,3219.0,0.90693868]
[1768842257163,0.99995953,3219.4,3218.8,0.90693868]
[1768842258639,0.99995953,3219.4,3218.9,0.90693868]
[1768842259484,0.001,3219.1,3218.9,0.90693868]
[1768842259644,0.001,3219.1,3218.9,1.30858749]
[1768842260572,0.00280184,3219.7,3219.0,0.90693868]
[1768842260777,0.00280184,3219.7,3219.0,0.90774044]
[1768842260975,1.00195969,3219.7,3219.0,0.90774044]
[1768842261182,1.00195969,3219.7,3219.3,0.90693868]
[1768842261348,0.00280184,3219.7,3219.3,0.90693868]
[1768842262078,1.00195969,3219.7,3219.3,0.90693868]
[1768842262791,0.00280184,3219.7,3219.3,0.90693868]
[1768842265286,0.00280184,3219.7,3219.4,0.95098722]
[1768842265580,1.49070876,3220.0,3219.5,0.95098722]
[1768842265756,0.002,3220.0,3219.5,0.95098722]
[1768842266169,0.00080192,3220.1,3219.6,0.95098722]
[1768842267477,0.00080192,3220.1,3219.8,0.95098722]
[1768842268472,0.511,3220.3,3219.8,0.95098722]
[1768842269775,0.511,3220.3,3219.9,0.95098722]
[1768842272793,0.002,3220.0,3219.9,0.95098722]
[1768842273001,0.00080176,3220.4,3220.0,0.95098722]
[1768842273718,0.97770876,3220.3,3219.8,1.35263603]
[1768842276119,0.97770876,3220.3,3219.8,0.95098722]
[1768842276722,0.00080176,3220.4,3219.9,0.95098722]
[1768842278507,0.511,3220.5,3219.7,0.511802]
[1768842278508,0.511,3220.5,3220.1,0.95098722]
[1768842279694,0.97770876,3220.6,3220.1,0.95098722]
[1768842280822,0.97770876,3220.6,3220.1,4.05643986]
[1768842281124,0.97770876,3220.6,3220.2,1.39517517]
[1768842281325,0.51180136,3220.7,3220.3,0.989451]
[1768842282027,0.90464408,3220.4,3219.7,0.000802]
[1768842282325,0.90464408,3220.1,3219.7,0.000802]
[1768842282530,0.90464408,3219.9,3219.7,0.000802]
[1768842282902,0.90464408,3219.8,3219.7,0.000802]
[1768842285234,4.01042704,3219.8,3219.7,0.000802]
[1768842285739,4.01042704,3219.8,3219.3,0.00080192]
[1768842285740,0.90464408,3219.7,3219.3,0.00080192]
[1768842285901,0.90464408,3219.6,3219.3,0.00080192]
[1768842286497,0.90464408,3219.6,3218.8,3.10871775]
[1768842286498,0.90464408,3219.5,3218.8,0.002]
[1768842286701,0.90464408,3219.2,3218.5,0.002]
[1768842286921,0.90464408,3219.0,3218.5,0.002]
[1768842287108,0.90464408,3218.8,3218.5,0.002]
[1768842287702,0.90464408,3218.7,3218.5,0.002]
[1768842288098,0.90464408,3218.6,3218.4,0.00080248]
[1768842289639,0.425,3218.5,3218.4,0.00080248]
[1768842291646,1.32964408,3218.5,3218.4,0.00080248]
[1768842291843,1.32964408,3218.5,3217.9,0.99025404]
[1768842291844,0.90464408,3218.4,3217.9,0.99025404]
[1768842292430,0.90464408,3218.3,3217.9,0.00080304]
[1768842292757,0.90464408,3218.2,3217.9,0.00080304]
[1768842295356,0.511,3218.3,3217.9,0.00080304]
[1768842295357,0.425,3218.1,3217.9,0.00080304]
[1768842295730,0.425,3218.1,3217.9,0.90935317]
[1768842297623,1.42813044,3218.3,3217.9,0.90935317]
[1768842297624,0.85313044,3218.3,3217.9,0.90935317]
[1768842297822,0.85313044,3218.3,3218.2,0.002]
[1768842299270,0.91713044,3218.2,3217.9,0.00280304]
[1768842299566,0.511,3218.4,3217.9,0.00280304]
[1768842299567,1.42813044,3218.4,3217.9,0.00280304]
[1768842299712,0.512,3218.5,3218.0,0.90855013]
[1768842300318,0.91713044,3218.4,3217.9,0.40491205]
[1768842300536,0.91713044,3218.4,3217.9,0.00280304]
[1768842300740,0.91713044,3218.4,3217.9,0.91135317]
[1768842301359,0.512,3218.6,3218.0,0.90855013]
[1768842301756,1.42913044,3218.6,3218.0,0.90855013]
[1768842301916,0.512,3218.6,3218.0,0.90855013]
[1768842302123,0.91713044,3218.5,3218.0,0.90855013]
[1768842302446,4.02417533,3218.5,3218.0,0.90855013]
[1768842303350,4.02417533,3218.5,3218.0,1.31065339]
[1768842303746,4.02417533,3218.5,3218.0,0.90855013]
[1768842304885,0.91713044,3218.5,3218.0,0.90855013]
[1768842305160,1.42913044,3218.7,3218.1,0.90855013]
[1768842305522,4.53604374,3218.7,3218.1,0.90855013]
[1768842305755,3.6189133,3218.7,3218.1,0.90855013]
[1768842305955,0.91713044,3218.6,3218.1,1.31044103]
[1768842306132,0.91713044,3218.6,3218.1,0.90855013]
[1768842307058,0.00080248,3218.8,3218.1,0.90855013]
[1768842307236,0.00080248,3218.8,3218.3,0.90855013]
[1768842308059,0.91793212,3219.1,3218.3,0.90855013]
[1768842308340,0.91793212,3219.1,3218.5,0.90855013]
[1768842308752,0.91793212,3219.1,3218.7,0.90855013]
[1768842308967,4.02439049,3219.1,3218.7,0.90855013]
[1768842309265,0.91793212,3219.1,3218.7,0.90855013]
[1768842309477,0.00080168,3219.1,3218.7,1.3101059]
[1768842309929,0.00080168,3219.1,3218.8,0.90855013]
[1768842311672,0.00080168,3219.1,3218.9,0.90855013]
[1768842312072,0.9179322,3219.4,3219.0,0.90855013]
[1768842313493,0.91713044,3219.3,3218.8,0.90855013]
[1768842315191,0.00080176,3219.4,3218.8,0.90855013]
[1768842316192,0.9179322,3219.4,3218.8,0.90855013]
[1768842316396,0.9179322,3219.4,3219.0,0.90855013]
[1768842317291,0.00080176,3219.4,3219.0,0.90855013]
[1768842319508,3.10698433,3219.4,3219.0,0.90855013]
[1768842319718,0.9179322,3219.4,3219.0,0.90855013]
[1768842320810,0.00080176,3219.4,3219.1,0.90855013]
[1768842320985,0.00080176,3219.4,3219.0,3.10654204]
[1768842320986,0.00080192,3219.7,3219.3,0.90855013]
[1768842321390,0.91793236,3219.7,3219.3,0.90855013]
[1768842322073,0.00080192,3219.7,3219.3,0.90855013]
[1768842322281,0.00080192,3219.7,3219.4,0.90855013]
[1768842323617,0.00080192,3219.7,3219.2,0.9606149]
[1768842323820,0.00080192,3219.7,3219.3,0.9606149]
[1768842324026,0.00080192,3219.7,3219.0,0.00080184]
[1768842324027,0.99592487,3219.7,3219.0,0.00080184]
[1768842324386,0.99512295,3219.4,3219.0,0.00080184]
[1768842325629,3.10626533,3219.3,3219.0,0.00080184]
[1768842325786,0.99512295,3219.4,3219.0,0.00080184]
[1768842326682,1.50712295,3219.5,3219.0,0.96141674]
[1768842326881,0.99512295,3219.4,3219.0,0.96141674]
[1768842327117,0.99512295,3219.4,3219.0,0.00080184]
[1768842328507,1.50712295,3219.6,3219.0,0.96141674]
[1768842328817,1.50712295,3219.6,3219.1,0.9606149]
[1768842331419,0.51180192,3219.7,3219.2,0.9606149]
[1768842332118,3.6177021,3219.7,3219.2,0.9606149]
[1768842332322,3.6177021,3219.7,3219.0,0.71828289]
[1768842332323,0.99512295,3219.6,3219.0,0.96141674]
[1768842333619,0.99512295,3219.6,3219.4,0.001]
[1768842334323,4.10109992,3219.6,3219.4,0.001]
[1768842334817,0.99512295,3219.6,3219.4,0.001]
[1768842335723,3.61973156,3219.7,3219.4,0.001]
[1768842335925,0.99512295,3219.6,3219.4,0.001]
[1768842339103,0.51380192,3219.7,3219.4,0.001]
[1768842339502,3.10870305,3219.7,3219.4,0.001]
[1768842340237,0.00280192,3219.7,3219.4,0.001]
[1768842341329,0.00280192,3219.7,3219.4,0.92836809]
[1768842342633,1.14703367,3219.8,3219.4,0.92836809]
[1768842342928,4.2528632,3219.8,3219.4,0.92836809]
[1768842344306,1.14703367,3219.8,3219.4,0.92836809]
[1768842344533,4.60219634,3219.9,3219.4,0.92836809]
[1768842345314,0.98549522,3219.9,3219.4,0.92836809]
[1768842347197,0.002,3219.6,3219.4,0.92836809]
[1768842347397,4.60210632,3220.0,3219.5,1.33090664]
[1768842347398,0.002,3219.9,3219.5,1.33090664]
[1768842347631,0.002,3219.9,3219.5,0.92736809]
[1768842348134,0.000802,3220.1,3219.6,0.92736809]
[1768842349943,0.000802,3220.1,3219.5,0.92736809]
[1768842350119,0.000802,3220.1,3219.6,0.92736809]
[1768842352141,0.000802,3220.1,3219.7,0.92736809]
[1768842353838,0.98145472,3220.1,3219.4,0.93860059]
[1768842354138,3.10559006,3220.0,3219.4,1.34316279]
[1768842354341,0.98065272,3219.9,3219.4,1.34316279]
[1768842354637,0.98065272,3219.9,3219.4,0.4055622]
[1768842355036,0.98065272,3219.9,3219.4,0.001]
[1768842357054,0.98065272,3219.8,3219.4,0.001]
[1768842357226,0.98065272,3219.8,3219.4,0.93860059]
[1768842357542,0.98065272,3220.0,3219.4,0.93860059]
[1768842358349,0.000802,3220.1,3219.4,0.93860059]
[1768842358514,0.000802,3220.1,3219.6,0.93760059]
[1768842359053,0.000802,3220.1,3219.7,0.93860059]
[1768842362133,0.98145472,3220.1,3219.7,0.001]
[1768842362856,0.98145472,3220.1,3219.4,0.93860059]
[1768842362857,0.98145472,3220.1,3219.4,0.001]
[1768842363258,0.98145472,3220.1,3219.4,0.93860059]
[1768842363628,0.98065272,3219.9,3219.4,0.93860059]
[1768842365353,0.98065272,3219.9,3219.4,0.001]
[1768842366262,0.98065272,3219.8,3219.4,0.001]
[1768842370360,4.0864484,3219.8,3219.4,0.001]
[1768842370663,0.98065272,3219.8,3219.4,0.001]
[1768842371659,0.98065272,3219.8,3219.7,0.001]
[1768842371864,0.98065272,3219.7,3219.4,0.001]
[1768842379841,0.98065272,3219.9,3219.4,0.93860059]
[1768842380072,0.98145472,3220.1,3219.4,0.93860059]
[1768842380770,4.08696876,3220.1,3219.4,0.93860059]
[1768842381077,4.08696876,3220.1,3219.6,0.93760059]
[1768842383173,0.98145472,3220.1,3219.7,0.001]
[1768842383378,0.98145472,3220.1,3219.7,0.95808647]
[1768842385777,0.000802,3220.1,3219.7,0.95808647]
[1768842388919,0.97627588,3220.1,3219.7,0.95808647]
[1768842391099,4.08177369,3220.1,3219.7,0.95808647]
[1768842393224,4.08177369,3220.1,3219.7,0.001]
[1768842393704,0.97627588,3220.1,3219.7,0.001]
[1768842395025,0.97627588,3220.1,3219.7,0.95808647]
[1768842395176,0.002,3219.8,3219.7,0.95808647]
[1768842395370,0.97627588,3220.1,3219.7,1.36450099]
[1768842395615,0.97827588,3220.1,3219.7,1.36450099]
[1768842395815,0.002802,3220.1,3219.7,1.36450099]
[1768842396282,0.002802,3220.1,3219.7,0.95808647]
[1768842396474,3.10830475,3220.1,3219.7,0.95808647]
[1768842396697,4.08377863,3220.1,3219.7,0.95808647]
[1768842397907,0.97827588,3220.1,3219.7,0.95808647]
[1768842398100,0.97827588,3220.1,3219.7,0.001]
[1768842398607,0.97547388,3220.0,3219.7,0.001]
[1768842399892,0.002802,3220.1,3219.7,0.95808647]
[1768842401805,0.99613857,3220.1,3219.7,0.95808647]
[1768842402118,0.99613857,3220.1,3219.7,0.001]
[1768842402326,3.1083112,3220.1,3219.7,0.001]
[1768842402484,0.99333657,3220.0,3219.7,0.001]
[1768842403203,0.002802,3220.1,3219.7,0.98001777]
[1768842403385,3.10830261,3220.1,3219.7,0.98001777]
[1768842403591,0.99333657,3220.0,3219.7,0.001]
[1768842405709,3.10830261,3220.1,3219.7,0.98001777]
[1768842405710,0.002802,3220.1,3219.7,0.98001777]
[1768842406029,0.002802,3220.1,3219.8,0.97901777]
[1768842407301,0.002802,3220.1,3219.7,0.40960272]
[1768842407501,3.10829807,3220.1,3219.7,1.38862049]
[1768842407701,4.10163464,3220.1,3219.7,0.98001777]
[1768842408104,0.99333657,3220.0,3219.7,0.001]
[1768842408296,0.002,3219.8,3219.7,0.001]
[1768842408500,0.99333657,3220.0,3219.7,0.001]
[1768842411602,4.09894395,3220.0,3219.7,0.001]
[1768842411811,0.99333657,3219.9,3219.7,0.001]
[1768842416839,0.98707364,3219.8,3219.7,0.001]
[1768842418931,0.98707364,3220.0,3219.7,0.001]
[1768842421158,0.002802,3220.1,3219.7,1.00095807]
[1768842421853,0.002802,3220.1,3220.0,0.05170963]
[1768842426069,0.002802,3220.1,3220.0,1.0516677]
[1768842426272,0.002,3220.3,3220.1,0.99995807]
[1768842430288,0.002,3220.3,3220.0,0.05170963]
[1768842430289,0.98907364,3220.3,3220.0,0.05170963]
[1768842432161,0.98707364,3220.2,3219.7,1.00176015]
[1768842432363,0.98707364,3219.8,3219.4,0.001]
[1768842434378,3.10587942,3219.7,3219.4,0.001]
[1768842434578,0.98707364,3219.6,3219.4,0.001]
[1768842436564,0.98707364,3219.8,3219.4,0.001]
[1768842436970,7.19863956,3219.8,3219.4,0.001]
[1768842437877,7.19863956,3219.8,3219.4,1.00095807]
[1768842437878,3.10578296,3219.8,3219.4,1.00095807]
[1768842438292,4.60379426,3219.9,3219.4,1.00095807]
[1768842439404,0.511,3219.9,3219.4,1.00095807]
[1768842439700,0.511,3219.9,3219.6,0.99995807]
[1768842440502,1.49807364,3219.9,3219.4,1.00095807]
[1768842440730,0.98707364,3219.8,3219.4,0.001]
[1768842440873,0.98707364,3219.8,3219.3,0.000802]
[1768842442272,0.98707364,3219.6,3219.3,0.000802]
[1768842442474,0.98707364,3219.5,3219.3,0.000802]
[1768842444280,0.94178397,3219.4,3219.3,0.000802]
[1768842445396,4.76768229,3219.6,3219.3,0.000802]
[1768842445720,1.66166722,3219.6,3219.3,0.000802]
[1768842445905,0.512,3219.7,3219.3,0.99927121]
[1768842446106,4.04757117,3219.8,3219.3,0.99927121]
[1768842446902,7.15335837,3219.8,3219.3,0.99927121]
[1768842447100,0.94178397,3219.7,3219.3,0.99927121]
[1768842447327,0.94178397,3219.7,3219.3,0.000802]
[1768842447532,0.94178397,3219.6,3219.3,0.000802]
[1768842448823,1.70116937,3219.7,3219.3,0.000802]
[1768842449205,4.8070803,3219.7,3219.3,0.000802]
[1768842451215,3.86529633,3219.7,3219.3,0.000802]
[1768842451415,0.94178397,3219.6,3219.3,0.000802]
[1768842453335,4.04758782,3219.8,3219.3,0.000802]
[1768842453632,1.70830422,3219.8,3219.4,0.99846921]
[1768842454130,1.70830422,3219.8,3219.3,0.000802]
[1768842454305,0.94178397,3219.8,3219.3,0.000802]
[1768842454505,0.94178397,3219.8,3219.3,0.99927121]
[1768842454705,0.512,3219.9,3219.3,0.99927121]
[1768842455114,4.55953488,3219.9,3219.3,0.99927121]
[1768842455313,0.94178397,3219.8,3219.3,0.99927121]
[1768842455721,0.002,3219.5,3219.3,0.99927121]
[1768842456048,0.002,3219.8,3219.4,0.99846921]
[1768842456230,0.00080208,3220.1,3219.5,0.99846921]
[1768842457211,0.00080208,3220.1,3219.5,3.10602858]
[1768842457522,0.00080208,3220.1,3219.6,0.99846921]
[1768842459540,0.00080208,3220.1,3219.7,0.99846921]
[1768842459746,0.00080208,3220.1,3219.9,0.99846921]
[1768842460252,0.002,3220.3,3219.9,0.9963754]
[1768842461754,3.61774041,3220.7,3219.9,0.9963754]
[1768842461755,0.00280088,3221.0,3220.2,0.9963754]
[1768842462054,0.00280088,3221.0,3220.4,0.9963754]
[1768842462626,0.00280088,3221.0,3220.4,6.78855893]
[1768842462826,0.002,3221.2,3220.7,0.9963754]
[1768842463730,0.002,3221.2,3220.9,0.9963754]
[1768842464364,0.96205539,3221.2,3220.7,0.9963754]